Cogmind - Beta 11.2 @@@ ROGUE MODE // 2023.01.20 @ 21:33:13 Player: IzRey Result: Destroyed by S-10 Pest with Light Assault Rifle Performance ------------- Evolutions (0) 0 Regions Visited (2) 400 Robots Destroyed (8) 40 Value Destroyed (250) 250 Prototype IDs (0) 0 Alien Tech Used (0) 0 Bonus (50) 50 TOTAL SCORE: 740 Bonus ------- Follower Combat Kills 50 Cogmind --------- Core Integrity 0/250 Matter 285/300 Energy 160/160 System Corruption 0% Temperature Hot (202) Movement Walking (120) Location -10/Mines Parts ------- > --- POWER (1) -------- Light Nuclear Core > --- PROPULSION (2) --- Aluminum Leg Carbon-fiber Leg > --- UTILITY (2) ------ Small Storage Unit Signal Interpreter > --- WEAPON (2) ------- Small Laser Particle Gun > --- INVENTORY (8) ---- Light Ion Engine Aluminum Leg Aluminum Leg Aluminum Leg Aluminum Leg Wheel High-capacity Matter Pod (200) Peak State ------------ > --- POWER ------------ Light Nuclear Core > --- PROPULSION ------- Carbon-fiber Leg Carbon-fiber Leg > --- UTILITY ---------- Small Storage Unit Signal Interpreter > --- WEAPON ----------- Small Laser Light Assault Rifle > --- INVENTORY -------- Light Ion Engine Aluminum Leg Aluminum Leg Wheel High-capacity Matter Pod [Rating: 13] Favorites ----------- Power Ion Engine Engine Ion Engine Power Core Light Nuclear Core Propulsion Wheel Leg Carbon-fiber Leg Wheel Wheel Utility Small Storage Unit Storage Small Storage Unit Processor Signal Interpreter Weapon Light Assault Rifle Energy Gun Small Laser Ballistic Gun Light Assault Rifle Launcher Grenade Launcher Build | -11 -10 -10 ------- Run | Scr Mat Min Slots Evolved . | . . . Power . | . . . Propulsion . | . . . Utility . | . . . Weapon . | . . . Parts Attached 17 | 5 1 11 Power 2 | 1 . 1 Engine 1 | 1 . . Core 1 | . . 1 Reactor . | . . . Propulsion 8 | 2 . 6 Treads . | . . . Leg 6 | . . 6 Wheel 2 | 2 . . Hover . | . . . Flight . | . . . Utility 2 | 1 1 . Device . | . . . Storage 1 | 1 . . Processor 1 | . 1 . Hackware . | . . . Protection . | . . . Artifact . | . . . Weapon 5 | 1 . 4 Energy Gun 3 | . . 3 Energy Cannon . | . . . Ballistic Gun 1 | 1 . . Ballistic Cannon . | . . . Launcher 1 | . . 1 Special Weapon . | . . . Impact Weapon . | . . . Slashing Weapon . | . . . Piercing Weapon . | . . . Special Melee Weapon . | . . . Unidentified Prototypes . | . . . Parts Lost 6 | . . 6 Power 1 | . . 1 Propulsion 3 | . . 3 Utility . | . . . Weapon 2 | . . 2 Highest Loss Streak 4 | . . 4 To Critical Strikes . | . . . Average Slot Usage (%) 83 | . 82 83 Engine 8 | . 14 6 Core 3 | . . 5 Leg 9 | . . 12 Wheel 18 | . 28 14 Storage 14 | . 14 14 Processor 13 | . 11 14 Energy Gun 1 | . . 1 Ballistic Gun 13 | . 14 13 Naked Turns . | . . . Heaviest Build 14 | 11 11 14 Greatest Support 30 | 20 20 30 Greatest Overweight (x) 1 | 1 . . Average Overweight (x) . | . . . Largest Inventory Capacity 8 | 8 8 8 Average Capacity 7 | 6 8 8 Most Carried 8 | 2 3 8 Average Carried 3 | 1 2 4 Final Capacity 8 | 8 8 8 Final Carried 7 | 2 3 7 Class Distribution -------------------- 100% | Mutant Dominant Class ---------------- Mutant | -10/Materials Mutant | -10/Mines Resources | -11 -10 -10 ----------- Run | Scr Mat Min Matter Collected 590 | 248 25 317 Remotely . | . . . Salvage Created 268 | . 76 192 Parts 17 | . 5 12 Haulers Intercepted . | . . . Recyclers Shooed . | . . . Parts Field Recycled . | . . . Retrieved Matter . | . . . Parts Self-Destructed . | . . . Prevented . | . . . Kills | -11 -10 -10 ------- Run | Scr Mat Min Combat Hostiles Destroyed 8 | . 2 6 Guns 8 | . 2 6 Classes Destroyed 2 | . 1 1 Swarmer 2 | . . 2 Grunt 6 | . 2 4 Best Kill Streak 2 | . 1 2 Combat Bots Only 2 | . 1 2 Max Kills in Single Turn 1 | . 1 1 Gunslinging . | . . . Exploded . | . . . Melee . | . . . Uniques/NPCs Destroyed . | . . . Combat | -11 -10 -10 -------- Run | Scr Mat Min Damage Taken 784 | . 130 654 Core 252 | . 69 183 Absorbed by Shields . | . . . Core Remaining (%) 100 | 100 . . Volleys Fired 69 | . 13 56 Largest 2 | . 1 2 Hottest 105 | . 20 105 Shots Fired 79 | . 13 66 Gun 79 | . 13 66 Cannon . | . . . Launcher . | . . . Special . | . . . Kinetic 65 | . 13 52 Thermal 14 | . . 14 Explosive . | . . . Electromagnetic . | . . . Robot Hit Streak 12 | . 6 12 Robot Miss Streak 3 | . 1 3 Penetration Max . | . . . Secondary Targets . | . . . Shots Hit Robots 64 | . 11 53 Core Hits 23 | . 4 19 Critical Kills . | . . . Critical Parts Destroyed . | . . . Critical Strikes . | . . . Melee Attacks . | . . . Impact . | . . . Slashing . | . . . Piercing . | . . . Sneak Attacks . | . . . Combat Hostiles . | . . . Follow-up Attacks . | . . . Damage Inflicted 549 | . 84 465 Guns 549 | . 84 465 Cannons . | . . . Explosions . | . . . Melee . | . . . Ramming . | . . . Kinetic 438 | . 84 354 Thermal 111 | . . 111 Explosive . | . . . Electromagnetic . | . . . Impact . | . . . Slashing . | . . . Piercing . | . . . Highest Corruption . | . . . Average Corruption . | . . . Corruption Purged . | . . . Corruption Blocked . | . . . Overload Shots . | . . . Overflow Damage . | . . . Projectiles . | . . . Explosions . | . . . Melee . | . . . Knockbacks . | . . . Impact . | . . . Kinetic . | . . . Secondary . | . . . Self-Inflicted Damage . | . . . Shots . | . . . Rammed . | . . . Targets Rammed . | . . . Kicked . | . . . Crushed . | . . . Highest Temperature 202 | . 6 202 Average Temperature 42 | . 6 47 Received Heat Transfer 372 | . 60 312 Siege Activations . | . . . Robots Corrupted . | . . . Combat Hostiles . | . . . Parts Fried . | . . . Impact Corruptions . | . . . Robots Melted . | . . . Combat Hostiles . | . . . Parts Melted . | . . . Heat Transferred 262 | . . 262 Parts Sabotaged . | . . . Parts Stolen . | . . . Parts Stripped . | . . . Power Chain Reactions . | . . . Missiles Intercepted . | . . . Alert | -11 -10 -10 ------- Run | Scr Mat Min Peak Influence 174 | . 59 174 Initial 22 | . . 22 Average 49 | . 23 63 Maximum Alert Level . | . . . Low Security (%) 100 | 100 100 100 Level 1 . | . . . Level 2 . | . . . Level 3 . | . . . Level 4 . | . . . Level 5 . | . . . High Security . | . . . Max Security . | . . . Squads Dispatched 2 | . 1 1 Investigation . | . . . Extermination . | . . . Reinforcement 1 | . 1 . Assault 1 | . . 1 Garrison . | . . . Intercept . | . . . Searches Triggered . | . . . Construction Impeded . | . . . Haulers Reinforced . | . . . Active Scanning Responses . | . . . Cargo Convoy Interrupts . | . . . Stealth | -11 -10 -10 --------- Run | Scr Mat Min Distress Signals 3 | . 3 . Communications Jammed . | . . . Distress Signals . | . . . Times Spotted 20 | . 8 12 Peak Tracking Total 6 | . 6 3 Tactical Retreats 1 | . . 1 Traps | -11 -10 -10 ------- Run | Scr Mat Min Traps Triggered . | . . . Indirectly . | . . . Trap Hack Attempts . | . . . Triggered . | . . . Disarmed . | . . . Reprogrammed . | . . . Reused . | . . . Traps Extracted . | . . . Installed . | . . . Triggered . | . . . Machines | -11 -10 -10 ---------- Run | Scr Mat Min Machines Disabled . | . . . Max in Single Turn . | . . . Machines Sabotaged . | . . . Garrisons Compromised . | . . . Overloaded Fab Kills . | . . . Hacking | -11 -10 -10 --------- Run | Scr Mat Min Machines Accessed 1 | . 1 . Terminals 1 | . 1 . Fabricators . | . . . Repair Stations . | . . . Recycling Units . | . . . Scanalyzers . | . . . Garrison Access . | . . . Total Hacks 1 | . 1 . Successful 1 | . 1 . Failed . | . . . Catastrophic . | . . . Database Lockouts . | . . . Manual . | . . . Terminals 1 | . 1 . Fabricators . | . . . Repair Stations . | . . . Recycling Units . | . . . Scanalyzers . | . . . Garrison Access . | . . . Terminal Hacks 1 | . 1 . Locate Traps 1 | . 1 . Fabricator Hacks . | . . . Repair Station Hacks . | . . . Recycling Unit Hacks . | . . . Scanalyzer . | . . . Garrison Access Hacks . | . . . Unauthorized Hacks . | . . . Terminals . | . . . Fabricators . | . . . Repair Stations . | . . . Recycling Units . | . . . Scanalyzers . | . . . Garrison Access . | . . . Data Cores Recovered . | . . . Used . | . . . Hacking Detections . | . . . Full Trace Events . | . . . Feedback Events . | . . . Feedback Blocked . | . . . Robot Schematics Acquired . | . . . Robots Built . | . . . Authchips . | . . . Time . | . . . Total Robot Build Rating . | . . . Part Schematics Acquired . | . . . Parts Built . | . . . Authchips . | . . . Time . | . . . Total Part Build Rating . | . . . Parts Repaired . | . . . Time . | . . . Parts Recycled . | . . . Recycled Matter . | . . . Retrieved Matter . | . . . Retrieved Components . | . . . Parts Scanalyzed . | . . . Part Schematics Acquired . | . . . Parts Damaged . | . . . Bothacking | -11 -10 -10 ------------ Run | Scr Mat Min Used RIF Installer . | . . . Robots Hacked . | . . . Non-combat . | . . . Combat . | . . . Robot Hacks Applied . | . . . Relay Couplers Released . | . . . Fabnet Peak Effective % . | . . . Robots Rewired . | . . . Allies Hacked . | . . . Hacks Repelled . | . . . Allies | -11 -10 -10 -------- Run | Scr Mat Min Total Allies 1 | . . 1 Largest Group 1 | . . 1 Highest-Rated Group 31 | . . 31 Highest-Rated Ally 31 | . . 31 Total Orders . | . . . Ally Attacks 4 | . . 4 Total Damage 83 | . . 83 Kills 2 | . . 2 Allies Corrupted . | . . . Allies Melted . | . . . Intel | -11 -10 -10 ------- Run | Scr Mat Min Robot Analysis Total . | . . . Derelict Logs Recovered . | . . . Drone Launches . | . . . Drone Recoveries . | . . . Exploration | -11 -10 -10 ------------- Run | Scr Mat Min Turns Passed 528 | 41 126 361 Spaces Moved 362 | 41 115 206 Core 9 | 9 . . Treads . | . . . Legs 70 | . . 70 Wheels 283 | 32 115 136 Hover . | . . . Flight . | . . . Fastest Speed 50 | 50 80 80 Average Speed 87 | 75 80 93 Slowest Speed 120 | 100 80 120 Overloaded Moves . | . . . Propulsion Burnouts . | . . . Robots Hopped . | . . . Cave-ins Triggered . | . . . Exploration Rate (%) 24 | 3 33 38 Regions Visited 2 Branch Regions 1 Pre-discovered Areas . | . . . Known Exits Taken 1 | . 1 . Unknown Exits Taken 1 | 1 . . Scrap Searched 1 | . . 1 Spaces Dug . | . . . Terrain Destroyed . | . . . Melee . | . . . Projectile . | . . . AOE . | . . . Terrain Rammed . | . . . Walls Destroyed . | . . . Machines Disabled . | . . . Actions | -11 -10 -10 --------- Run | Scr Mat Min Total 501 | 48 137 316 Wait 45 | . 8 37 Move 360 | 40 114 206 Hop . | . . . Pick Up 10 | 3 1 6 Fast Attach 7 | 4 1 2 Attach 6 | 1 . 5 Detach . | . . . Swap 4 | . . 4 Drop . | . . . Fire 69 | . 13 56 Melee . | . . . Ram . | . . . Kick . | . . . Crush . | . . . Escape Stasis . | . . . Rewire . | . . . Trap . | . . . Miscellaneous . | . . . Route ------- -11/Scrapyard -10/Materials (discovered 2 exits: *Mat / *Min) -10/Mines (discovered 1 exit: *Mat) History --------- Turn | Location | Event 8 | -11/Scrapyard | Discovered new exit (range 15) 42 | -11/Scrapyard | Entered Materials 79 | -10/Materials | Discovered new exit (range 16) 90 | -10/Materials | Identified exit to Materials 131 | -10/Materials | Met 8R-AWN 134 | -10/Materials | Discovered new exit (range 15) 167 | -10/Materials | Identified exit to Mines 168 | -10/Materials | Entered Mines 169 | -10/Mines | Met a Derelict testing a Signal Generator 237 | -10/Mines | Discovered exit to Materials (range 6) 324 | -10/Mines | Build established: Mutant 353 | -10/Mines | Core integrity fell below 50% 393 | -10/Mines | Lost 4 parts (1p2n1w) 480 | -10/Mines | Core integrity fell below 20% 529 | -10/Mines | Destroyed by S-10 Pest with Light Assault Rifle Last Messages --------------- 00372_ Acquired 44 matter. 00373_ Acquired 59 matter. 00375_ Acquired 91 matter. 00376_ Acquired 5 matter. 00378_ K-01 Serf collects debris. 00392_ Acquired 40 matter. 00433_ S-10 Pest destroyed. 00436_ Acquired 6 matter. 00440_ Acquired Lgt. Ion Engine. 00449_ K-01 Serf cleans the Matter Pump. 00454_ K-01 Serf collects debris. 00476_ G-34 Mercenary destroyed. 00477_ Acquired 4 matter. 00479_ Critical hit (Burn: +37). 00480_ Acquired Sml. Laser. 00491_ Carbon-fiber Leg destroyed. 00495_ G-47 Trooper destroyed. 00499_ Acquired Aluminum Leg. 00505_ Acquired 21 matter. 00512_ Lgt. Assault Rifle destroyed. Map ----- +----------------------------------------------------+ | ?????????????????????????????????????????????????? | | ?????????????????????????????????????????????????? | | ?????????????????????????????????????????????????? | | ?????????????????????????????????????????????????? | | ?????????????????????????????????????????????????? | | ?????????????????????????????????????????????????? | | ?????????????????????????????????????????????????? | | ?????????????????????????????????????????????????? | | ?????????????????????????????????????????????????? | | ?????????????????????????????????????????????????? | | ?????????????????????????????????????????????????? | | ?????????????????????????????????????????????????? | | ?????????????????????????????????????????????????? | | ?????????????????????????? ####??????????????????? | | ??????????????????????????? ##?????????????????? | | ?????????????????????????? ##?####???????????? | | ????????????????#######???? ## ###?????????? | | ????????????????? ##?? ??????????? | | ?????????????????? #??# ??????????? | | ???????????????????# ##?# ???????????? | | ??????????????????## ### #????????????? | | ??????????????????# """ #?????????????? | | ??????????????????# """ #?????????????? | | ???????????????#### %g """ #?????????????? | | ?????????" *g #?????????????? | | ???????? ###@ #?????????????? | | ?????????? ###########??## m #?????????????? | | ?????????????????????????# us ##????????????? | | ?????????????????????????# ### ##???????????? | | ?????????????????????????# #### ##??????????? | | ?????????????????????????# #?# #??????????? | | ?????????????????????????## #?# #??????????? | | ????????####??????????????#####?# ## #??????????? | | ??????### #????????????????????# #?##??????????? | | ?????## #????????????????????# #?????????????? | | ?????# &#????????????????????#= #?????##??????? | | ?????# ##????????????????????#%%###??? ??????? | | ?????## ##???????????????????##*= ##?? ??????? | | ??????## #???????????????????# #?? #?????? | | ???????# ###???????????????????# #?? #?????? | | ???????# #########?????????????## ##?? #?????? | | ???????# #??????????????## #??? #?????? | | ???????######### #???????????????# ##??# #?????? | | ???????????????# #############???# ##???# ##????? | | ???????????????# #???# #????# ?????? | | ???????????????############# #???# #????# #?????? | | ???????????????????????????# #???# ##???# #??#### | | ???????????????????????????# #?### ##### #??# | | ???????????????????????##### ###! #??# ## | | ??????????????????????## ## ##%| ! #??# #? | +----------------------------------------------------+ Best States ------------- Heat Dissipation 25 Energy Generation 14 Energy Capacity 250 Matter Stores 300 Matter Capacity 300 Sight Range 16 Terrain Scan Density 10 Evasion (%) 55 Item Schematics ----------------- None Robot Schematics ------------------ None Fabricated ------------ Nothing Alien Tech Used ----------------- None Achievements -------------- None Challenges ------------ None Game ------ Seed MiniPhasingWheel Manual? 0 Play Time 00:11:22 Cumulative 469.5 hours Start 2023.01.20 @ 21:24:21 End 2023.01.20 @ 21:33:13 Sessions 1 Manual Loads 0 Difficulty Rogue Special Mode None Game No. 35 Rogue 18 Adventurer 17 Explorer 0 Win Type - Total 1 Types 1/0/0/0/0/0/0/0/0 Lore% 40 Gallery% 55 Achievement% 44 Wizard Run 0 Options --------- ASCII 0 Keyboard 0 Movement Numpad Keybinds 0 Fullscreen 1 Font 12/Smallcaps Map View 76x56 Tactical HUD 1 Map Filters NONE Filters NONE Steam 1 RUN: 5a2f9580-b399-46ce-994a-8ffc7436093d